bitfinex-derivatives/quotes_BTCF0:USTF0_20241218
["timestamp","ask_amount","ask_price","bid_price","bid_amount"]
[1734524709765,1.10388497,105130.0,105120.0,0.17041261]
[1734524709954,1.1038654,105130.0,105120.0,0.17041261]
[1734524710159,1.10354883,105130.0,105120.0,0.17141261]
[1734524710562,1.1036597,105130.0,105120.0,0.17141261]
[1734524710757,1.1320221,105130.0,105120.0,0.002]
[1734524710957,0.047581,105110.0,105100.0,0.27041261]
[1734524711159,0.49527232,105110.0,105100.0,0.27041261]
[1734524711366,0.85626277,105110.0,105100.0,0.05210253]
[1734524711663,1.15615232,105110.0,105100.0,0.05210253]
[1734524711966,0.047585,105100.0,105090.0,0.22721249]
[1734524712169,0.9074574,105100.0,105090.0,0.22721249]
[1734524712364,0.9075374,105100.0,105090.0,0.22721249]
[1734524713267,0.9085374,105100.0,105090.0,0.22821249]
[1734524713569,0.9095374,105100.0,105090.0,0.22821249]
[1734524713767,1.0233635,105100.0,105090.0,0.001]
[1734524714268,1.0873635,105100.0,105090.0,0.001]
[1734524714969,1.1503635,105100.0,105090.0,0.001]
[1734524715370,1.23554486,105100.0,105090.0,0.001]
[1734524715760,0.82006486,105100.0,105090.0,0.001]
[1734524715955,1.17158486,105100.0,105090.0,1.54859]
[1734524716162,0.20118854,105100.0,105090.0,1.90939]
[1734524716465,0.10028854,105100.0,105090.0,2.42798132]
[1734524716670,0.08518136,105110.0,105090.0,2.04109]
[1734524716863,0.17207268,105110.0,105100.0,0.408385]
[1734524717170,0.08518136,105110.0,105100.0,0.408425]
[1734524717572,0.08527866,105110.0,105100.0,0.49531632]
[1734524717774,0.08627866,105110.0,105100.0,0.49531632]
[1734524718166,0.0010973,105110.0,105100.0,0.49531632]
[1734524718566,0.0010973,105110.0,105100.0,0.408425]
[1734524719073,0.0020973,105110.0,105100.0,0.63563749]
[1734524719679,0.0020973,105110.0,105100.0,0.63763749]
[1734524721472,0.0020973,105110.0,105100.0,2.13763749]
[1734524721674,0.0496783,105110.0,105100.0,2.13763749]
[1734524722073,0.0496783,105110.0,105100.0,0.63763749]
[1734524722582,0.0496783,105110.0,105100.0,2.13763749]
[1734524724177,0.0496783,105110.0,105100.0,0.63763749]
[1734524725082,0.13656962,105110.0,105100.0,0.27683749]
[1734524726479,0.13656962,105110.0,105100.0,0.049625]
[1734524727378,0.0496783,105110.0,105100.0,0.049625]
[1734524729081,0.13656962,105110.0,105100.0,0.049625]
[1734524731784,0.22175098,105110.0,105100.0,0.049625]
[1734524732283,0.58255098,105110.0,105100.0,0.00204]
[1734524732884,0.22175098,105110.0,105100.0,0.00204]
[1734524733981,0.22075098,105110.0,105100.0,0.00204]
[1734524734389,0.58155098,105110.0,105100.0,0.00204]
[1734524734879,0.58055098,105110.0,105100.0,0.00104]
[1734524735084,0.58155098,105110.0,105100.0,0.00204]
[1734524736687,0.64455098,105110.0,105100.0,0.00204]
[1734524737088,0.55936962,105110.0,105100.0,0.00204]
[1734524739386,0.56882928,105110.0,105100.0,0.00204]
[1734524739885,0.71111191,105110.0,105100.0,0.00204]
[1734524740072,0.71111191,105110.0,105100.0,0.00104]
[1734524740273,0.71211191,105110.0,105100.0,0.00104]
[1734524741090,0.71211191,105110.0,105100.0,4e-05]
[1734524741091,1.01211191,105110.0,105100.0,4e-05]
[1734524742577,1.25690323,105110.0,105080.0,0.22730123]
[1734524742781,0.49528132,105090.0,105080.0,8.874e-05]
[1734524743386,0.65318132,105090.0,105080.0,8.874e-05]
[1734524743583,0.61846132,105090.0,105080.0,8.874e-05]
[1734524744186,0.70380889,105090.0,105080.0,8.874e-05]
[1734524744891,0.70480889,105090.0,105080.0,0.00108874]
[1734524745294,0.79170021,105090.0,105080.0,0.00108874]
[1734524745479,1.15250021,105090.0,105080.0,0.00108874]
[1734524745685,1.15250021,105090.0,105080.0,0.00208874]
[1734524746784,1.06715264,105090.0,105080.0,0.00208874]
[1734524746987,1.07684292,105090.0,105080.0,0.00208874]
[1734524748297,1.09112293,105090.0,105080.0,0.00208874]
[1734524748497,1.07684292,105090.0,105080.0,0.00208874]
[1734524748698,1.09112293,105090.0,105080.0,0.00208874]
[1734524748892,1.39112293,105090.0,105080.0,0.00208874]
[1734524749096,1.1765108,105090.0,105080.0,0.00208874]
[1734524749496,1.3344108,105090.0,105080.0,0.00208874]
[1734524750497,1.24909887,105090.0,105080.0,0.00208874]
[1734524756000,1.3913815,105090.0,105080.0,0.00208874]
[1734524756295,1.3913815,105090.0,105080.0,8.874e-05]
[1734524756501,1.3923815,105090.0,105080.0,8.874e-05]
[1734524756703,0.047603,105060.0,105050.0,0.57680798]
[1734524756900,0.84693432,105060.0,105050.0,0.57680798]
[1734524757101,0.84701432,105060.0,105050.0,0.57680798]
[1734524757709,0.3994352,105060.0,105050.0,0.98521598]
[1734524758001,0.4004352,105060.0,105050.0,0.98621598]
[1734524758506,0.4004352,105060.0,105050.0,0.70242049]
[1734524759296,0.4004352,105060.0,105050.0,0.70342049]
[1734524759899,0.3528322,105060.0,105050.0,0.476208]
[1734524760701,0.0011922,105060.0,105050.0,0.56309932]
[1734524760896,0.08530287,105070.0,105050.0,0.86309932]
[1734524761101,0.08530449,105080.0,105070.0,0.047599]
[1734524761403,0.14228263,105090.0,105080.0,0.047594]
[1734524761608,0.14228263,105090.0,105080.0,0.408394]
[1734524761797,0.14239307,105090.0,105080.0,2.208434]
[1734524762405,0.047587,105100.0,105090.0,0.04759]
[1734524762609,0.047587,105100.0,105090.0,0.40839]
[1734524762906,0.047587,105100.0,105090.0,0.40843]
[1734524763508,0.04871005,105100.0,105090.0,0.40843]
[1734524763711,0.04871005,105100.0,105090.0,0.63564249]
[1734524764009,0.04871005,105100.0,105090.0,0.63764249]
[1734524764211,0.04871005,105100.0,105090.0,0.70054249]
[1734524764508,0.04871005,105100.0,105090.0,0.76554249]
[1734524765506,0.04771005,105100.0,105090.0,0.82694249]
[1734524767412,0.40980652,105120.0,105110.0,0.047581]
[1734524767802,0.40980652,105120.0,105110.0,0.047621]
[1734524768016,0.40980652,105120.0,105110.0,0.108221]
[1734524768410,0.00153345,105120.0,105110.0,0.469021]
[1734524768607,0.00353345,105120.0,105110.0,0.469021]
[1734524768919,0.00453345,105120.0,105110.0,0.469021]
[1734524769511,0.05210945,105120.0,105110.0,0.469021]
[1734524777707,0.00453345,105120.0,105110.0,0.469021]
[1734524778224,0.05210945,105120.0,105110.0,0.469021]
[1734524778914,0.05210945,105120.0,105110.0,4e-05]
[1734524779120,0.58526457,105120.0,105110.0,4e-05]
[1734524779307,0.71406457,105120.0,105110.0,4e-05]
[1734524779513,0.62717325,105120.0,105110.0,4e-05]
[1734524779918,0.71406457,105120.0,105110.0,4e-05]
[1734524781023,0.047585,105100.0,105090.0,0.047585]
[1734524781210,0.49527632,105100.0,105090.0,0.047585]
[1734524781415,0.84687632,105100.0,105090.0,0.047585]
[1734524782325,0.84687632,105100.0,105090.0,0.049585]
[1734524782718,0.84687632,105100.0,105090.0,0.002]
[1734524782924,0.84697696,105100.0,105090.0,0.002]
[1734524783126,1.20777696,105100.0,105090.0,0.002]
[1734524784729,1.20977696,105100.0,105090.0,0.002]
[1734524785427,0.04759,105090.0,105080.0,0.01]
[1734524785621,0.64727264,105090.0,105080.0,0.01]
[1734524785824,0.71255264,105090.0,105080.0,0.01]
[1734524786022,0.71262205,105090.0,105080.0,0.01]
[1734524786823,0.71362205,105090.0,105080.0,0.01]
[1734524787734,0.71562205,105090.0,105080.0,0.01]
[1734524788628,0.72990206,105090.0,105080.0,0.01]
[1734524789728,0.13449032,105070.0,105060.0,1.54906847]
[1734524789928,0.13449032,105070.0,105060.0,1.50146747]
[1734524790131,0.49537032,105070.0,105060.0,1.50146747]
[1734524790529,0.49547987,105070.0,105060.0,1.50146747]
[1734524791033,0.49547987,105070.0,105060.0,1.50346747]
[1734524791239,0.49547987,105070.0,105060.0,1.50204]
[1734524791723,0.49647987,105070.0,105060.0,1.50804]
[1734524794526,0.49647987,105070.0,105060.0,0.00804]
[1734524794926,0.49647987,105070.0,105060.0,1.50804]
[1734524795233,0.49647987,105070.0,105060.0,0.00804]
[1734524795937,0.55847987,105070.0,105060.0,0.00804]
[1734524796534,0.56799941,105070.0,105060.0,0.00804]
[1734524798034,0.65489073,105070.0,105060.0,0.00795695]
[1734524798334,0.81279073,105070.0,105060.0,0.00795695]
[1734524799335,0.047612,105040.0,105030.0,0.047616]
[1734524799540,0.48618332,105040.0,105030.0,0.047616]
[1734524799731,0.48626332,105040.0,105030.0,0.047616]
[1734524800132,0.48626332,105040.0,105020.0,0.65958163]
[1734524800433,0.13467039,105030.0,105020.0,0.33683349]
[1734524800625,0.04777907,105030.0,105020.0,0.33683349]
[1734524801229,0.13467039,105030.0,105020.0,0.33683349]
[1734524801425,0.13467039,105030.0,105020.0,0.34083349]
[1734524801625,0.13467039,105030.0,105020.0,0.27883349]
[1734524801833,0.13467039,105030.0,105020.0,0.051621]
[1734524802240,0.49547039,105030.0,105020.0,0.004]
[1734524802434,0.64806171,105030.0,105020.0,0.007]
[1734524802749,0.5754904,105030.0,105020.0,0.007]
[1734524803135,0.66338172,105030.0,105020.0,0.005]
[1734524803534,0.72519965,105030.0,105020.0,0.005]
[1734524804533,0.72419965,105030.0,105020.0,0.003]
[1734524804734,0.047621,105020.0,105010.0,0.00010231]
[1734524805044,0.55890044,105020.0,105010.0,0.00010231]
[1734524805629,0.59817076,105020.0,104970.0,0.87180798]
[1734524805935,0.408436,104990.0,104980.0,0.04764]
[1734524806237,0.89467732,105000.0,104980.0,0.53154]
[1734524806430,0.3608,105000.0,104980.0,0.53154]
[1734524806736,0.48627832,105010.0,104990.0,0.047635]
[1734524806939,7.774e-05,105000.0,104990.0,0.047635]
[1734524807141,0.13459906,105000.0,104990.0,0.047635]
[1734524808236,0.14891907,105000.0,104990.0,0.047635]
[1734524808431,0.50971907,105000.0,104990.0,0.047635]
[1734524808636,0.047635,104990.0,104980.0,0.241537]
[1734524808837,0.10128907,105000.0,104980.0,0.600337]
[1734524809135,0.14992107,105000.0,104990.0,0.049675]
[1734524809536,0.14992107,105000.0,104990.0,0.051675]
[1734524809745,0.04870974,105000.0,104990.0,0.051675]
[1734524809944,0.13560106,105000.0,104990.0,0.051675]
[1734524810257,0.13460106,105000.0,104990.0,0.049675]
[1734524810839,0.58229238,105000.0,104990.0,0.00204]
[1734524811039,0.58229238,105000.0,104990.0,4e-05]
[1734524811740,0.58229238,105000.0,104990.0,0.00204]
[1734524812741,0.49540106,105000.0,104990.0,0.00204]
[1734524815746,0.49740106,105000.0,104990.0,4e-05]
[1734524816136,0.41050974,105000.0,104990.0,4e-05]
[1734524816340,0.49940106,105000.0,104990.0,4e-05]
[1734524817242,0.49740106,105000.0,104990.0,4e-05]
[1734524817437,0.49940106,105000.0,104990.0,4e-05]
[1734524818138,0.56220106,105000.0,104990.0,4e-05]
[1734524819839,0.80691464,105000.0,104990.0,4e-05]
[1734524820034,0.87141464,105000.0,104990.0,4e-05]
[1734524821950,0.93711464,105000.0,104990.0,4e-05]
[1734524822644,0.540932,105000.0,104990.0,0.047675]
[1734524822845,0.36489848,105000.0,104990.0,0.047675]
[1734524823144,0.00409848,105000.0,104990.0,0.047675]
[1734524823348,0.05172848,105000.0,104990.0,0.113375]
[1734524823643,0.00409848,105000.0,104990.0,0.113375]
[1734524823854,0.00409848,105000.0,104990.0,0.56106632]
[1734524824150,0.00409848,105000.0,104990.0,0.474175]
[1734524824846,0.00409848,105000.0,104990.0,2.06106632]
[1734524825150,0.00209848,105000.0,104990.0,2.06106632]
[1734524825350,0.04972848,105000.0,104990.0,1.976175]
[1734524826048,0.04772848,105000.0,104990.0,1.976175]
[1734524827950,0.04772848,105000.0,104990.0,1.615375]
[1734524828149,0.04772848,105000.0,104990.0,0.476175]
[1734524828652,0.04772848,105000.0,104990.0,1.976175]
[1734524829047,0.04772848,105000.0,104990.0,0.115375]
[1734524829564,0.04772848,105000.0,104990.0,1.615375]
[1734524830240,0.04772848,105000.0,104990.0,1.976175]
[1734524830845,0.04772848,105000.0,104990.0,2.06306632]
[1734524831045,0.04772848,105000.0,104990.0,1.976175]
[1734524832957,0.04772848,105000.0,104990.0,1.615375]
[1734524834549,0.04772848,105000.0,104990.0,2.12638298]
[1734524835352,9.848e-05,105000.0,104990.0,2.2132743]
[1734524835850,9.848e-05,105000.0,104990.0,2.5740743]
[1734524836055,0.11341657,105010.0,104990.0,3.0800903]
[1734524836260,0.11341657,105010.0,105000.0,0.55602132]
[1734524836556,0.11341657,105010.0,105000.0,0.55606132]
[1734524837055,0.1135358,105010.0,105000.0,0.55606132]
[1734524837256,0.1155358,105010.0,105000.0,0.55606132]
[1734524837560,0.00211923,105010.0,105000.0,2.88663964]
[1734524837958,0.8895046,105030.0,105020.0,0.047621]
[1734524838359,0.8895046,105030.0,105020.0,0.047661]
[1734524838861,0.88962504,105030.0,105020.0,0.047661]
[1734524839057,0.88962504,105030.0,105020.0,0.21826739]
[1734524839855,0.89162504,105030.0,105020.0,0.21826739]
[1734524840054,0.89362504,105030.0,105020.0,0.21826739]
[1734524840361,0.89362504,105030.0,105020.0,0.047661]
[1734524841663,0.90362504,105030.0,105020.0,0.047661]
[1734524843157,0.87709979,105030.0,105020.0,4e-05]
[1734524843360,0.96399111,105030.0,105020.0,4e-05]
[1734524844565,1.21969031,105030.0,105020.0,4e-05]
[1734524845760,1.10627374,105030.0,105020.0,4e-05]
[1734524846867,1.10484472,105030.0,105020.0,4e-05]
[1734524848171,1.24842471,105030.0,105020.0,4e-05]
[1734524848466,1.26274472,105030.0,105020.0,4e-05]
[1734524852263,1.43323217,105030.0,105020.0,4e-05]
[1734524853374,1.29094954,105030.0,105020.0,4e-05]
[1734524859278,0.93014954,105030.0,105020.0,4e-05]
[1734524859580,1.65174954,105030.0,105020.0,4e-05]
[1734524859973,1.48126209,105030.0,105020.0,0.17064639]
[1734524860575,1.23647077,105030.0,105020.0,0.17064639]
[1734524861176,1.23647077,105030.0,105020.0,0.21826739]
[1734524861378,1.23647077,105030.0,105020.0,0.17064639]
[1734524861970,1.23647077,105030.0,105020.0,0.21826739]
[1734524861971,0.74116045,105030.0,105020.0,0.21826739]
[1734524862172,0.88378797,105030.0,105020.0,0.21826739]
[1734524862380,0.93140497,105030.0,105020.0,0.21826739]
[1734524862674,0.88378797,105030.0,105020.0,0.21826739]
[1734524862881,0.88378797,105030.0,105020.0,0.28496739]
[1734524863174,0.50866796,105030.0,105020.0,0.28496739]
[1734524863371,0.50866796,105030.0,105020.0,0.64576739]
[1734524863571,0.27083558,105030.0,105020.0,1.2601339]
[1734524864480,0.27083558,105030.0,105020.0,0.87324258]
[1734524864875,0.01412044,105030.0,105020.0,0.95843611]
[1734524865385,0.01412044,105030.0,105020.0,1.04532743]
[1734524870682,0.01412044,105030.0,105020.0,1.05472136]
[1734524872188,0.01412044,105030.0,105020.0,1.08263535]
[1734524873387,0.01412044,105030.0,105020.0,0.79883986]
[1734524874186,0.06173744,105030.0,105020.0,0.79883986]
[1734524875886,0.01412044,105030.0,105020.0,0.79883986]
[1734524876283,0.00412044,105030.0,105020.0,1.09883986]
[1734524876788,0.00412044,105030.0,105020.0,2.59883986]
[1734524877291,0.00412044,105030.0,105020.0,2.8534805]
[1734524877490,0.16169662,105050.0,105040.0,0.047612]
[1734524877986,0.16169662,105050.0,105040.0,0.114152]
[1734524878490,0.04772569,105050.0,105040.0,0.51170151]
[1734524879694,0.04972569,105050.0,105040.0,0.51170151]
[1734524880002,0.04972569,105050.0,105040.0,0.28453036]
[1734524880799,0.05072569,105050.0,105040.0,0.28453036]
[1734524884394,0.13761701,105050.0,105040.0,0.28453036]
[1734524884602,0.49841701,105050.0,105040.0,0.17041836]
[1734524885286,0.61250463,105050.0,105040.0,4e-05]
[1734524888199,0.62678464,105050.0,105040.0,4e-05]
[1734524888798,0.76941216,105050.0,105040.0,4e-05]
[1734524891111,0.68318447,105050.0,105040.0,4e-05]
[1734524891607,0.84108447,105050.0,105040.0,4e-05]
[1734524892498,0.047612,105040.0,105030.0,0.17037836]
[1734524892702,0.6942051,105040.0,105030.0,0.17037836]
[1734524893006,0.8521851,105040.0,105030.0,0.17037836]
[1734524893900,0.8521851,105040.0,105030.0,0.17337836]
[1734524894107,1.02267255,105040.0,105030.0,0.004]
[1734524894498,0.047617,105030.0,105020.0,0.17037836]
[1734524894699,0.49530832,105030.0,105020.0,0.17037836]
[1734524894895,0.49538832,105030.0,105020.0,0.17037836]
[1734524895299,0.58237752,105030.0,105020.0,0.17037836]
[1734524895499,0.72489784,105030.0,105010.0,0.39754951]
[1734524895707,0.98695444,105020.0,105010.0,0.39754951]
[1734524895903,0.97958065,105020.0,105010.0,0.39754951]
[1734524896595,0.97958065,105020.0,105010.0,0.40054951]
[1734524896801,0.89268933,105020.0,105010.0,0.40054951]
[1734524897006,1.03520965,105020.0,105010.0,0.003]
[1734524897314,1.03720965,105020.0,105010.0,0.008]
[1734524897808,1.12410097,105020.0,105010.0,0.008]
[1734524898006,1.18088817,105020.0,105010.0,0.17837836]
[1734524899605,1.09547066,105020.0,105010.0,0.008]
[1734524901801,1.18083425,105020.0,105010.0,0.008]
[1734524902711,1.18083425,105020.0,105010.0,0.005]
[1734524903013,0.047626,105010.0,105000.0,1.71800736]
[1734524903214,0.49531732,105010.0,105000.0,1.71800736]
[1734524903414,0.49539732,105010.0,105000.0,1.71800736]
[1734524904306,0.49539732,105010.0,105000.0,1.71900736]
[1734524905615,0.49539732,105010.0,105000.0,1.72200736]
[1734524906209,0.49539732,105010.0,105000.0,0.22200736]
[1734524906806,0.49539732,105010.0,105000.0,0.051629]
[1734524908312,0.50971733,105010.0,105000.0,0.051629]
[1734524908511,0.49539732,105010.0,105000.0,0.051629]
[1734524908712,0.50971733,105010.0,105000.0,0.051629]
[1734524910320,0.50971733,105010.0,105000.0,0.22200736]
[1734524911422,0.51932767,105010.0,105000.0,0.22200736]
[1734524911612,0.37520001,105010.0,105000.0,0.22200736]
[1734524911817,8e-05,105010.0,105000.0,0.96969868]
[1734524912018,8e-05,105010.0,105000.0,1.06397966]
[1734524912323,8e-05,105010.0,105000.0,2.56397966]
[1734524912523,8e-05,105010.0,105000.0,2.50684351]
[1734524912715,8e-05,105010.0,105000.0,2.56397966]
[1734524913324,8e-05,105010.0,105000.0,2.88045637]
[1734524913524,8e-05,105010.0,105000.0,2.82332022]
[1734524913919,8e-05,105010.0,105000.0,2.52332022]
[1734524914121,8e-05,105010.0,105000.0,2.46618407]
[1734524914829,8e-05,105010.0,105000.0,2.4756541]
[1734524916919,0.047706,105010.0,105000.0,2.4756541]
[1734524917125,0.047706,105010.0,105000.0,0.96618407]
[1734524918028,0.13479127,105010.0,105000.0,0.49085507]
[1734524918214,0.56449127,105010.0,105000.0,0.49085507]
[1734524918421,0.62859127,105010.0,105000.0,0.49085507]
[1734524919431,0.69229127,105010.0,105000.0,0.49085507]
[1734524919822,0.80618128,105010.0,105000.0,0.17472028]
[1734524920929,0.80626039,105010.0,105000.0,0.17472028]
[1734524921131,1.00529904,105010.0,105000.0,0.004]
[1734524922230,1.00541347,105010.0,105000.0,0.004]
[1734524922431,0.86289315,105010.0,105000.0,0.004]
[1734524922633,0.13471527,105000.0,104990.0,0.02235528]
[1734524922835,0.49551527,105000.0,104990.0,0.02235528]
[1734524923034,0.49559527,105000.0,104990.0,0.02235528]
[1734524923235,0.49559527,105000.0,104980.0,2.01142253]
[1734524923534,0.047715,104990.0,104980.0,2.05906153]
[1734524923841,0.047715,104990.0,104980.0,1.83143449]
[1734524924037,0.13480027,104990.0,104980.0,1.83143449]
[1734524924839,0.93301546,104990.0,104980.0,0.27532136]
[1734524925537,0.93401546,104990.0,104980.0,0.27932136]
[1734524925930,0.93401546,104990.0,104980.0,0.23168136]
[1734524926238,0.93513281,104990.0,104980.0,0.23168136]
[1734524926440,1.00203281,104990.0,104980.0,0.23168136]
[1734524926841,1.07053281,104990.0,104980.0,0.23168136]
[1734524927335,1.13683281,104990.0,104980.0,0.23168136]
[1734524927727,1.13683281,104990.0,104980.0,0.004]
[1734524927728,1.05129762,104990.0,104980.0,0.004]
[1734524928631,1.06561763,104990.0,104980.0,0.004]
[1734524929545,1.179623,104990.0,104980.0,0.004]
[1734524929745,1.02403773,104990.0,104980.0,0.004]
[1734524930240,1.111123,104990.0,104980.0,0.004]
[1734524930836,1.19658432,104990.0,104980.0,0.004]
[1734524931338,1.20601002,104990.0,104980.0,0.004]
[1734524932243,1.09200465,104990.0,104980.0,0.004]
[1734524932646,1.09200465,104990.0,104980.0,1.504]
[1734524935339,1.09200465,104990.0,104980.0,0.004]
[1734524935545,1.16040465,104990.0,104980.0,0.004]
[1734524935749,1.16040465,104990.0,104980.0,1.55164]
[1734524936539,1.16040465,104990.0,104980.0,0.05164]
[1734524937742,1.17934993,104990.0,104980.0,0.004]
[1734524937939,0.04764,104980.0,104970.0,0.22763116]
[1734524938141,0.40844,104980.0,104970.0,0.22763116]
[1734524938338,0.04772,104980.0,104970.0,0.22763116]
[1734524938641,0.04772,104980.0,104970.0,0.27527516]
[1734524938944,8e-05,104980.0,104970.0,0.27527516]
[1734524939147,0.04872,104980.0,104970.0,0.27927516]
[1734524939551,0.04972,104980.0,104970.0,0.051644]
[1734524939943,0.13680527,104980.0,104970.0,0.051644]
[1734524942257,0.04972,104980.0,104970.0,0.051644]
[1734524943646,0.04972,104980.0,104970.0,0.27902857]
[1734524945255,0.00208,104980.0,104970.0,0.27902857]
[1734524945449,0.00208,104980.0,104970.0,0.72691384]
[1734524945954,0.00208,104980.0,104970.0,2.13982857]
[1734524946351,0.00208,104980.0,104970.0,2.11504833]
[1734524946551,0.00208,104980.0,104970.0,2.39927904]
[1734524947559,0.00208,104980.0,104970.0,2.78636431]
[1734524947759,0.08552665,104990.0,104980.0,0.04764]
[1734524947953,0.08552665,104990.0,104980.0,0.53784]
[1734524948155,0.08552665,104990.0,104980.0,0.53788]
[1734524948961,0.08652665,104990.0,104980.0,0.53788]
[1734524949365,0.13416165,104990.0,104980.0,0.53788]
[1734524949551,0.13516165,104990.0,104980.0,1.3667919]
[1734524950659,0.13516165,104990.0,104980.0,1.2373919]
[1734524951860,0.13516165,104990.0,104980.0,0.89631504]
[1734524952367,0.20366165,104990.0,104980.0,0.89631504]
[1734524952761,0.29074692,104990.0,104980.0,0.53551504]
[1734524952968,0.71884692,104990.0,104980.0,0.53551504]
[1734524954162,0.83272599,104990.0,104980.0,0.53551504]
[1734524955772,0.83272599,104990.0,104980.0,0.48787504]
[1734524955981,0.89602599,104990.0,104980.0,0.48787504]
[1734524956174,0.89602599,104990.0,104980.0,0.53551504]
[1734524956677,0.80894072,104990.0,104980.0,0.53551504]
[1734524956975,0.72353142,104990.0,104980.0,0.27666867]
[1734524957874,0.66023142,104990.0,104980.0,0.27666867]
[1734524958180,0.66023142,104990.0,104980.0,0.22902867]
[1734524958676,0.74731669,104990.0,104980.0,0.22902867]
[1734524959069,0.75701951,104990.0,104980.0,0.22902867]
[1734524960478,0.89936835,104990.0,104980.0,0.22902867]
[1734524962075,0.78548928,104990.0,104980.0,0.22902867]
[1734524965980,0.81282529,104990.0,104980.0,0.22902867]
[1734524967171,0.81282529,104990.0,104980.0,1e-06]
[1734524967172,0.84129506,104990.0,104980.0,1e-06]
[1734524967777,1.29907771,104990.0,104980.0,1e-06]
[1734524968078,1.27184969,104990.0,104980.0,1e-06]
[1734524968273,1.2861697,104990.0,104980.0,1e-06]
[1734524968479,1.27184969,104990.0,104980.0,1e-06]
[1734524968677,1.2861697,104990.0,104980.0,1e-06]
[1734524969884,1.2851697,104990.0,104980.0,8e-08]
[1734524970076,1.30467419,104990.0,104980.0,8e-08]
[1734524970270,1.30467419,104990.0,104960.0,0.22809984]
[1734524970271,0.047644,104970.0,104960.0,0.22809984]
[1734524970473,1.10162987,104970.0,104960.0,0.22809984]
[1734524970675,1.23170987,104970.0,104960.0,0.22809984]
[1734524971682,1.34575918,104970.0,104960.0,0.00011117]
[1734524971884,1.39440718,104970.0,104940.0,0.4887846]
[1734524972180,0.047733,104950.0,104940.0,0.5364416]
[1734524972882,0.047733,104950.0,104940.0,2.0364416]
[1734524973071,0.13322239,104950.0,104940.0,1.83188771]
[1734524973275,0.13322239,104950.0,104940.0,1.547657]
[1734524973474,0.13422239,104950.0,104940.0,1.547657]
[1734524973678,0.08756939,104950.0,104940.0,1.547657]
[1734524973884,0.08756939,104950.0,104940.0,1.612257]
[1734524974080,0.13522239,104950.0,104940.0,1.612257]
[1734524974582,0.08756939,104950.0,104940.0,1.69945026]
[1734524974882,0.13522239,104950.0,104940.0,1.612257]
[1734524975072,0.13522239,104950.0,104940.0,1.674657]
[1734524975277,0.049733,104950.0,104940.0,1.674657]
[1734524977087,0.049733,104950.0,104940.0,1.547657]
[1734524978387,0.13692626,104950.0,104940.0,1.547657]
[1734524979288,0.13692626,104950.0,104940.0,1.5]
[1734524979788,0.047658,104940.0,104930.0,0.28423071]
[1734524979984,0.41062378,104950.0,104930.0,0.33189271]
[1734524980290,0.41062378,104950.0,104940.0,0.49565126]
[1734524980291,0.00208878,104950.0,104940.0,0.49565126]
[1734524980582,0.20009871,104960.0,104950.0,0.047653]
[1734524980788,0.0996387,104960.0,104950.0,0.49564626]
[1734524980990,0.0996387,104960.0,104950.0,0.79564626]
[1734524981179,0.0996387,104960.0,104950.0,2.29564626]
[1734524981585,7.631e-05,104960.0,104950.0,2.76163811]
[1734524981887,7.631e-05,104960.0,104950.0,2.46163811]
[1734524982784,0.00107631,104960.0,104950.0,2.80371497]
[1734524983085,0.00207631,104960.0,104950.0,3.10471497]
[1734524983278,0.00207631,104960.0,104950.0,2.80471497]
[1734524983987,0.00207631,104960.0,104950.0,2.37644485]
[1734524984283,0.04972531,104960.0,104950.0,0.87644485]
[1734524984685,0.04972531,104960.0,104950.0,2.37644485]
[1734524987382,0.04972531,104960.0,104950.0,2.01564485]
[1734524989197,0.11122531,104960.0,104950.0,2.01564485]
[1734524989387,0.11122531,104960.0,104950.0,1.96799185]
[1734524989693,0.11122531,104960.0,104950.0,1.502]
[1734524990890,0.47202531,104960.0,104950.0,1.502]
[1734524991791,0.47202531,104960.0,104950.0,0.002]
[1734524991996,0.61961857,104960.0,104950.0,0.002]
[1734524992686,0.68611857,104960.0,104950.0,0.002]
[1734524994597,0.8286802,104960.0,104950.0,0.002]
[1734524996000,0.82860389,104960.0,104950.0,0.002]
[1734524996496,1.12860389,104960.0,104940.0,1.50004]
[1734524996698,0.41601031,104950.0,104940.0,1.50004]
[1734524996995,0.40864195,104950.0,104940.0,1.50004]
[1734524997207,0.49583521,104950.0,104940.0,1.50004]
[1734524997494,0.40864195,104950.0,104940.0,0.047698]
[1734524997899,0.40864195,104950.0,104940.0,1.547698]
[1734524998195,0.40864195,104950.0,104940.0,1.50004]
[1734524998403,0.49583521,104950.0,104940.0,1.50004]
[1734524999505,0.49683521,104950.0,104940.0,1.50004]
[1734525000304,0.49683521,104950.0,104940.0,4e-05]
[1734525002203,0.5065659,104950.0,104940.0,4e-05]
[1734525005889,0.05857264,104950.0,104940.0,4e-05]
[1734525006089,0.00118895,104950.0,104940.0,0.408498]
[1734525006299,0.00118895,104950.0,104940.0,0.769298]
[1734525006696,0.00118895,104950.0,104940.0,1.908498]
[1734525006900,0.00118895,104950.0,104940.0,2.29569126]
[1734525007702,0.00118895,104950.0,104940.0,1.99569126]
[1734525008001,0.00118895,104950.0,104940.0,2.38288452]
[1734525008399,0.00118895,104950.0,104940.0,2.29569126]
[1734525008603,0.00118895,104950.0,104940.0,2.76674917]
[1734525009404,0.00118895,104950.0,104940.0,2.85394243]
[1734525009808,0.00118895,104950.0,104940.0,2.91078858]
[1734525010203,0.0639,104970.0,104960.0,0.047649]
[1734525010503,0.0639,104970.0,104960.0,0.49568226]
[1734525010813,0.0639,104970.0,104960.0,0.55568226]
[1734525011108,0.06397053,104970.0,104960.0,0.55568226]
[1734525011502,0.06597053,104970.0,104960.0,0.55568226]
[1734525012105,0.06597053,104970.0,104960.0,2.05568226]
[1734525012306,0.00207053,104970.0,104960.0,2.05568226]
[1734525012814,0.00407053,104970.0,104960.0,2.05568226]
[1734525013105,0.00307053,104970.0,104960.0,2.05668226]
[1734525013495,0.00107053,104970.0,104960.0,0.55668226]
[1734525013700,0.00107053,104970.0,104960.0,0.84084711]
[1734525014105,0.00107053,104970.0,104960.0,0.69365385]
[1734525014106,0.04871453,104970.0,104960.0,0.69365385]
[1734525014413,0.04871453,104970.0,104950.0,0.38872786]
[1734525014414,0.047649,104960.0,104950.0,0.38872786]
[1734525014704,0.408529,104960.0,104950.0,0.047651]
[1734525015308,8e-05,104960.0,104950.0,0.13484426]
[1734525016310,8e-05,104960.0,104950.0,0.20134426]
[1734525017014,0.048729,104960.0,104950.0,0.20134426]
[1734525017199,0.048729,104960.0,104950.0,0.114151]
[1734525017407,0.048729,104960.0,104950.0,0.177351]
[1734525020012,0.13592226,104960.0,104950.0,0.0665]
[1734525020203,0.047653,104950.0,104940.0,1.973996]
[1734525020515,0.047653,104950.0,104940.0,1.613196]